fUST/lending_fUST_20240208
["ID","MTS","AMOUNT","RATE_DAILY","PERIOD"]
[313427085,1707336647016,-784.66,0.00027671,3]
[313427086,1707336647025,-228.09610258,0.00027671,3]
[313427087,1707336647034,-500.0,0.00027671,3]
[313427088,1707336647043,-505.01286985,0.00027671,3]
[313427089,1707336647053,-6209.74,0.00027671,3]
[313427090,1707336647063,-500.0,0.00027808,2]
[313427091,1707336647073,-7281.8228967,0.00027855,2]
[313427092,1707336647082,-257.69,0.00027894,2]
[313427093,1707336647091,-225519.28781156,0.000279,2]
[313427094,1707336647101,-199.99,0.00027911,2]
[313427095,1707336647110,-1512.87642123,0.00027944,2]
[313427096,1707336647119,-500.0,0.00027945,3]
[313427097,1707336647129,-500.0,0.00027945,3]
[313427098,1707336647141,-500.0,0.00027945,3]
[313427100,1707336647151,-787.1,0.00027945,3]
[313427101,1707336647160,-500.0,0.00027945,3]
[313427103,1707336647170,-596.95,0.00027945,3]
[313427105,1707336647180,-500.0,0.00027945,2]
[313427106,1707336647190,-635.22,0.00027945,3]
[313427107,1707336647199,-589.5059707,0.00027945,3]
[313427108,1707336647209,-500.0,0.00027945,3]
[313427110,1707336647220,-500.0,0.00027945,3]
[313427111,1707336647229,-241.99853175,0.00027945,3]
[313427113,1707336647238,-930.41,0.00027945,3]
[313427114,1707336647247,-500.0,0.00027945,3]
[313427115,1707336647256,-1357.98,0.00027945,3]
[313427116,1707336647266,-500.0,0.00027945,3]
[313427117,1707336647275,-500.0,0.00027945,3]
[313427118,1707336647285,-500.0,0.00027945,3]
[313427120,1707336647294,-931.3,0.00027945,3]
[313427122,1707336647303,-500.0,0.00027945,3]
[313427124,1707336647312,-1168.97,0.00027945,3]
[313427125,1707336647321,-749.67,0.00027945,3]
[313427127,1707336647330,-2369.29,0.00027945,3]
[313427128,1707336647339,-505.33797762,0.00027945,2]
[313427129,1707336647349,-690.33,0.00027945,3]
[313427130,1707336647358,-9093.09,0.00027945,3]
[313427132,1707336647367,-271.35842576,0.00027945,3]
[313427134,1707336647376,-500.0,0.00027945,3]
[313427135,1707336647386,-184.60437836,0.00027945,2]
[313427137,1707336647395,-500.0,0.00027945,3]
[313427139,1707336647404,-500.0,0.00027945,3]
[313427141,1707336647413,-506.61538217,0.00027945,3]
[313427143,1707336647422,-909.84,0.00027945,3]
[313427145,1707336647431,-1554.07,0.00027945,3]
[313427147,1707336647441,-500.0,0.00027945,2]
[313427149,1707336647450,-615.59,0.00027945,3]
[313427151,1707336647459,-1000.0,0.00027945,2]
[313427153,1707336647467,-500.0,0.00027945,3]
[313427154,1707336647477,-500.0,0.00027945,3]
[313427156,1707336647486,-500.0,0.00027945,3]
[313427159,1707336647496,-2605.72,0.00027945,3]
[313427162,1707336647505,-500.0,0.00027945,3]
[313427165,1707336647514,-4252.06,0.00027945,3]
[313427168,1707336647523,-784.66,0.00027945,3]
[313427171,1707336647533,-500.0,0.00027945,3]
[313427174,1707336647541,-6209.74,0.00027945,3]
[313427177,1707336647551,-176.76908854,0.00027996,2]
[313427180,1707336647560,-298.60950096,0.00027998,2]
[313427183,1707336647569,-155.72638214,0.00027998,2]
[313427186,1707336647578,-155.78822741,0.00027998,2]
[313427189,1707336647587,-309.9690031,0.00027998,2]
[313427192,1707336647596,-203.23039391,0.00027998,2]
[313427194,1707336647606,-155.02635448,0.00027998,2]
[313427196,1707336647616,-155.02635448,0.00027998,2]
[313427199,1707336647625,-309.72125088,0.00027998,2]
[313427201,1707336647634,-680.53747908,0.00027998,2]
[313427204,1707336647643,-155.24648008,0.00027998,2]
[313427207,1707336647652,-304.05401372,0.00027998,2]
[313427209,1707336647662,-64999.29253378,0.00028,20]
[313427211,1707336647671,-154.9690062,0.00028,2]
[313427213,1707336647681,-1716.49476713,0.00028,2]
[313427215,1707336647690,-51930.88733907,0.00028,2]
[313427218,1707336647699,-300.0,0.00028,2]
[313427221,1707336647708,-1829.23863687,0.00028,2]
[313427224,1707336647718,-212.09151868,0.00028,2]
[313427227,1707336647727,-2086.73700022,0.00028,2]
[313427230,1707336647736,-3252.21461977,0.00028,2]
[313427233,1707336647746,-765.76707638,0.00028,2]
[313427236,1707336647756,-309.95662702,0.00028,2]
[313427239,1707336647765,-155.00155002,0.00028,2]
[313427242,1707336647775,-1012.27629002,0.00028,2]
[313427245,1707336647784,-355.22775851,0.00028,2]
[313427247,1707336647793,-203.27177752,0.00028,2]
[313427250,1707336647802,-240.35587555,0.00028,2]
[313427253,1707336647812,-53537.6864573,0.00028,2]
[313427256,1707336647821,-565.472377,0.00028057,2]
[313427258,1707336647831,-903.160731,0.00028057,2]
[313427261,1707336647840,-164.826695,0.00028057,2]
[313427264,1707336647849,-620.01151761,0.00028065,2]
[313427267,1707336647859,-248.79,0.00028143,7]
[313427270,1707336647868,-17471.87340397,0.000282,3]
[313427273,1707336647878,-500.0,0.00028219,3]
[313427276,1707336647887,-500.0,0.00028219,3]
[313427279,1707336647896,-787.1,0.00028219,3]
[313427282,1707336647905,-500.0,0.00028219,2]
[313427285,1707336647914,-500.0,0.00028219,3]
[313427288,1707336647924,-290.44,0.00028219,3]
[313427291,1707336647934,-930.41,0.00028219,3]
[313427293,1707336647943,-500.0,0.00028219,3]
[313427295,1707336647952,-1357.98,0.00028219,3]
[313427297,1707336647962,-500.0,0.00028219,3]
[313427299,1707336647972,-500.0,0.00028219,3]
[313427301,1707336647981,-931.3,0.00028219,3]
[313427303,1707336647989,-500.0,0.00028219,3]
[313427305,1707336648005,-1168.97,0.00028219,3]
[313427307,1707336648014,-749.67,0.00028219,3]
[313427309,1707336648023,-2369.29,0.00028219,3]
[313427311,1707336648032,-690.33,0.00028219,3]
[313427313,1707336648042,-9093.09,0.00028219,3]
[313427315,1707336648051,-500.0,0.00028219,3]
[313427317,1707336648060,-500.0,0.00028219,3]
[313427319,1707336648071,-500.0,0.00028219,3]
[313427321,1707336648080,-909.84,0.00028219,3]
[313427322,1707336648089,-1554.07,0.00028219,3]
[313427324,1707336648098,-615.59,0.00028219,3]
[313427326,1707336648107,-1000.0,0.00028219,2]
[313427328,1707336648119,-500.0,0.00028219,3]
[313427330,1707336648128,-500.0,0.00028219,3]
[313427332,1707336648140,-500.0,0.00028219,3]
[313427334,1707336648149,-2605.72,0.00028219,3]
[313427336,1707336648158,-500.0,0.00028219,3]
[313427338,1707336648167,-4252.06,0.00028219,3]
[313427340,1707336648178,-784.66,0.00028219,3]
[313427342,1707336648187,-500.0,0.00028219,3]
[313427344,1707336648196,-6209.74,0.00028219,3]
[313427346,1707336648204,-1586.00570889,0.00028233,2]
[313427348,1707336648215,-67263.4369688,0.00028349,2]
[313427358,1707336648300,-227655.81141317,0.00028349,2]
[313427360,1707336648309,-565.472377,0.00028408,2]
[313427361,1707336648319,-903.160731,0.00028408,2]
[313427363,1707336648328,-282.42,0.00028493,3]
[313427365,1707336648336,-500.0,0.00028493,3]
[313427367,1707336648345,-787.1,0.00028493,3]
[313427369,1707336648354,-500.0,0.00028493,2]
[313427371,1707336648363,-500.0,0.00028493,3]
[313427373,1707336648372,-930.41,0.00028493,3]
[313427375,1707336648382,-500.0,0.00028493,3]
[313427377,1707336648391,-1357.98,0.00028493,3]
[313427379,1707336648400,-500.0,0.00028493,3]
[313427381,1707336648409,-500.0,0.00028493,3]
[313427383,1707336648418,-931.3,0.00028493,3]
[313427385,1707336648427,-500.0,0.00028493,3]
[313427387,1707336648436,-1168.97,0.00028493,3]
[313427389,1707336648444,-749.67,0.00028493,3]
[313427391,1707336648454,-2369.29,0.00028493,3]
[313427393,1707336648463,-690.33,0.00028493,3]
[313427395,1707336648471,-9093.09,0.00028493,3]
[313427396,1707336648480,-500.0,0.00028493,3]
[313427398,1707336648489,-500.0,0.00028493,3]
[313427400,1707336648499,-500.0,0.00028493,3]
[313427402,1707336648507,-909.84,0.00028493,3]
[313427404,1707336648516,-1554.07,0.00028493,3]
[313427406,1707336648527,-615.59,0.00028493,3]
[313427408,1707336648536,-1000.0,0.00028493,2]
[313427410,1707336648545,-500.0,0.00028493,3]
[313427412,1707336648555,-500.0,0.00028493,3]
[313427414,1707336648564,-500.0,0.00028493,3]
[313427416,1707336648573,-2605.72,0.00028493,3]
[313427418,1707336648583,-500.0,0.00028493,3]
[313427419,1707336648593,-4252.06,0.00028493,3]
[313427421,1707336648602,-784.66,0.00028493,3]
[313427422,1707336648611,-500.0,0.00028493,3]
[313427423,1707336648620,-6209.74,0.00028493,3]
[313427426,1707336648698,-565.472377,0.00028759,2]
[313427427,1707336648718,-903.160731,0.00028759,2]
[313427428,1707336648728,-496.66740215,0.00028767,3]
[313427429,1707336648738,-787.1,0.00028767,3]
[313427430,1707336648747,-451.71313205,0.00028767,2]
[313427431,1707336648757,-930.41,0.00028767,3]
[313427432,1707336648766,-500.0,0.00028767,3]
[313427433,1707336648775,-1357.98,0.00028767,3]
[313427435,1707336648784,-500.0,0.00028767,3]
[313427436,1707336648793,-618.93,0.00028767,3]
[313427438,1707336648803,-931.3,0.00028767,3]
[313427440,1707336648813,-500.0,0.00028767,3]
[313427441,1707336648822,-1168.97,0.00028767,3]
[313427443,1707336648831,-749.67,0.00028767,3]
[313427445,1707336648840,-2369.29,0.00028767,3]
[313427446,1707336648849,-690.33,0.00028767,3]
[313427447,1707336648858,-9093.09,0.00028767,3]
[313427448,1707336648867,-155.0,0.00028767,2]
[313427449,1707336648876,-500.0,0.00028767,3]
[313427450,1707336648886,-500.0,0.00028767,3]
[313427451,1707336648895,-500.0,0.00028767,3]
[313427452,1707336648905,-909.84,0.00028767,3]
[313427453,1707336648914,-1554.07,0.00028767,3]
[313427454,1707336648924,-615.59,0.00028767,3]
[313427455,1707336648933,-1110.45907752,0.00028767,2]
[313427456,1707336648943,-500.0,0.00028767,3]
[313427457,1707336648953,-500.0,0.00028767,3]
[313427458,1707336648962,-500.0,0.00028767,3]
[313427459,1707336648973,-2605.72,0.00028767,3]
[313427460,1707336648982,-500.0,0.00028767,3]
[313427461,1707336648991,-4252.06,0.00028767,3]
[313427462,1707336649001,-784.66,0.00028767,3]
[313427463,1707336649010,-500.0,0.00028767,3]
[313427464,1707336649019,-6209.74,0.00028767,3]
[313427466,1707336649029,-150.24401879,0.00028775,2]
[313427467,1707336649038,-259.99999901,0.00028888,2]
[313427468,1707336649047,-151.0,0.00028937,2]
[313427469,1707336649057,-459.60686937,0.00029,3]
[313427470,1707336649067,-155.0,0.00029,2]
[313427471,1707336649076,-183.31759979,0.00029,10]
[313427472,1707336649085,-56306.24439266,0.00029,2]
[313427473,1707336649094,-1464.42431605,0.00029,2]
[313427474,1707336649104,-1464.42431605,0.00029,2]
[313427475,1707336649113,-1464.42431605,0.00029,2]
[313427476,1707336649122,-1464.42431605,0.00029,2]
[313427477,1707336649132,-1464.42431605,0.00029,2]
[313427478,1707336649145,-1464.42431605,0.00029,2]
[313427479,1707336649154,-1464.42431605,0.00029,2]
[313427480,1707336649163,-1464.42431605,0.00029,2]
[313427481,1707336649173,-1464.42431605,0.00029,2]
[313427482,1707336649183,-1464.42431605,0.00029,2]
[313427483,1707336649192,-889.0,0.00029,4]
[313427484,1707336649201,-787.1,0.00029041,3]
[313427485,1707336649213,-930.41,0.00029041,3]
[313427486,1707336649223,-500.0,0.00029041,3]
[313427487,1707336649232,-1357.98,0.00029041,3]
[313427488,1707336649242,-500.0,0.00029041,3]
[313427489,1707336649250,-931.3,0.00029041,3]
[313427490,1707336649259,-500.0,0.00029041,3]
[313427491,1707336649268,-1168.97,0.00029041,3]
[313427492,1707336649277,-749.67,0.00029041,3]
[313427493,1707336649287,-2369.29,0.00029041,3]
[313427494,1707336649296,-690.33,0.00029041,3]
[313427495,1707336649305,-9093.09,0.00029041,3]
[313427496,1707336649314,-500.0,0.00029041,3]
[313427497,1707336649323,-500.0,0.00029041,3]
[313427498,1707336649332,-500.0,0.00029041,3]
[313427499,1707336649341,-909.84,0.00029041,3]
[313427500,1707336649350,-1554.07,0.00029041,3]
[313427501,1707336649359,-615.59,0.00029041,3]
[313427502,1707336649369,-500.0,0.00029041,3]
[313427503,1707336649378,-500.0,0.00029041,3]
[313427504,1707336649388,-500.0,0.00029041,3]
[313427505,1707336649397,-2605.72,0.00029041,3]
[313427506,1707336649406,-500.0,0.00029041,3]
[313427507,1707336649415,-4252.06,0.00029041,3]
[313427508,1707336649425,-784.66,0.00029041,3]
[313427509,1707336649434,-500.0,0.00029041,3]
[313427510,1707336649443,-6209.74,0.00029041,3]
[313427511,1707336649453,-903.160731,0.00029109,2]
[313427512,1707336649462,-565.472377,0.00029109,2]
[313427513,1707336649472,-787.1,0.00029315,3]
[313427514,1707336649481,-930.41,0.00029315,3]
[313427515,1707336649491,-500.0,0.00029315,3]
[313427516,1707336649500,-1357.98,0.00029315,3]
[313427517,1707336649509,-500.0,0.00029315,3]
[313427518,1707336649518,-931.3,0.00029315,3]
[313427519,1707336649527,-500.0,0.00029315,3]
[313427520,1707336649536,-1168.97,0.00029315,3]
[313427521,1707336649545,-749.67,0.00029315,3]
[313427522,1707336649555,-2369.29,0.00029315,3]
[313427523,1707336649564,-690.33,0.00029315,3]
[313427524,1707336649574,-9093.09,0.00029315,3]
[313427525,1707336649583,-500.0,0.00029315,3]
[313427526,1707336649591,-500.0,0.00029315,3]
[313427527,1707336649600,-500.0,0.00029315,3]
[313427528,1707336649609,-909.84,0.00029315,3]
[313427529,1707336649620,-1554.07,0.00029315,3]
[313427530,1707336649629,-615.59,0.00029315,3]
[313427531,1707336649638,-500.0,0.00029315,3]
[313427532,1707336649647,-500.0,0.00029315,3]
[313427533,1707336649656,-500.0,0.00029315,3]
[313427534,1707336649665,-2605.72,0.00029315,3]
[313427535,1707336649675,-500.0,0.00029315,3]
[313427536,1707336649684,-4252.06,0.00029315,3]
[313427537,1707336649694,-784.66,0.00029315,3]
[313427538,1707336649703,-500.0,0.00029315,3]
[313427539,1707336649713,-6209.74,0.00029315,3]
[313427540,1707336649722,-153.0,0.00029315,2]
[313427541,1707336649731,-399.4848484,0.00029315,2]
[313427542,1707336649740,-307.3855345,0.00029315,2]
[313427543,1707336649749,-306.0,0.00029315,2]
[313427544,1707336649758,-306.4634771,0.00029315,2]
[313427545,1707336649767,-207.7973928,0.00029315,2]
[313427546,1707336649777,-199.9099361,0.00029315,2]
[313427547,1707336649786,-420.4280906,0.00029315,2]
[313427548,1707336649795,-199.9099361,0.00029315,2]
[313427549,1707336649804,-153.0,0.00029315,2]
[313427550,1707336649813,-199.9099361,0.00029315,2]
[313427551,1707336649822,-153.0,0.00029315,2]
[313427552,1707336649831,-165.5362919,0.00029315,2]
[313427553,1707336649841,-399.4848484,0.00029315,2]
[313427554,1707336649850,-620.21888587,0.00029369,2]
[313427555,1707336649860,-164.826695,0.0002946,2]
[313427556,1707336649869,-903.160731,0.0002946,2]
[313427557,1707336649878,-565.472377,0.0002946,2]
[313427558,1707336649887,-620.00057588,0.00029469,2]
[313427559,1707336649896,-1025.98354362,0.000295,2]
[313427560,1707336649906,-1185.04629617,0.000295,30]
[313427561,1707336649915,-787.1,0.00029589,3]
[313427562,1707336649924,-930.41,0.00029589,3]
[313427563,1707336649933,-500.0,0.00029589,3]
[313427564,1707336649942,-1357.98,0.00029589,3]
[313427565,1707336649951,-500.0,0.00029589,3]
[313427566,1707336649960,-931.3,0.00029589,3]
[313427567,1707336649969,-500.0,0.00029589,3]
[313427568,1707336649979,-1168.97,0.00029589,3]
[313427569,1707336649988,-749.67,0.00029589,3]
[313427570,1707336649998,-2369.29,0.00029589,3]
[313427571,1707336650007,-690.33,0.00029589,3]
[313427572,1707336650017,-9093.09,0.00029589,3]
[313427573,1707336650026,-500.0,0.00029589,3]
[313427574,1707336650036,-500.0,0.00029589,3]
[313427575,1707336650045,-500.0,0.00029589,3]
[313427576,1707336650055,-909.84,0.00029589,3]
[313427577,1707336650064,-1554.07,0.00029589,3]
[313427578,1707336650073,-615.59,0.00029589,3]
[313427579,1707336650083,-500.0,0.00029589,3]
[313427580,1707336650092,-500.0,0.00029589,3]
[313427581,1707336650101,-500.0,0.00029589,3]
[313427582,1707336650111,-2605.72,0.00029589,3]
[313427583,1707336650120,-500.0,0.00029589,3]
[313427584,1707336650129,-4252.06,0.00029589,3]
[313427585,1707336650142,-784.66,0.00029589,3]
[313427586,1707336650151,-500.0,0.00029589,3]
[313427587,1707336650160,-6209.74,0.00029589,3]
[313427588,1707336650170,-153.0,0.00029589,2]
[313427589,1707336650182,-154.98112191,0.00029717,2]
[313427590,1707336650191,-2000.0,0.000298,2]
[313427591,1707336650201,-2000.0,0.000298,2]
[313427592,1707336650212,-151.01359122,0.00029804,2]
[313427593,1707336650222,-2000.0,0.0002981,2]
[313427594,1707336650234,-2000.0,0.0002981,2]
[313427595,1707336650244,-2000.0,0.0002982,2]
[313427596,1707336650255,-2000.0,0.0002982,2]
[313427597,1707336650265,-2000.0,0.0002983,2]
[313427598,1707336650276,-2000.0,0.0002983,2]
[313427599,1707336650287,-2000.0,0.0002984,2]
[313427600,1707336650298,-2000.0,0.0002984,2]
[313427601,1707336650310,-2874.851273,0.0002985,2]
[313427602,1707336650321,-2000.0,0.0002985,2]
[313427603,1707336650332,-2000.0,0.0002986,2]
[313427604,1707336650342,-787.1,0.00029863,3]
[313427605,1707336650351,-930.41,0.00029863,3]
[313427606,1707336650361,-500.0,0.00029863,3]
[313427607,1707336650371,-1357.98,0.00029863,3]
[313427608,1707336650381,-500.0,0.00029863,3]
[313427609,1707336650391,-931.3,0.00029863,3]
[313427610,1707336650402,-500.0,0.00029863,3]
[313427611,1707336650411,-1168.97,0.00029863,3]
[313427612,1707336650486,-749.67,0.00029863,3]
[313427613,1707336650506,-2369.29,0.00029863,3]
[313427614,1707336650517,-690.33,0.00029863,3]
[313427615,1707336650527,-9093.09,0.00029863,3]
[313427616,1707336650537,-500.0,0.00029863,3]
[313427617,1707336650547,-500.0,0.00029863,3]
[313427618,1707336650556,-360.08407266,0.00029863,3]
[313427619,1707336650567,-909.84,0.00029863,3]
[313427620,1707336650576,-1554.07,0.00029863,3]
[313427621,1707336650586,-615.59,0.00029863,3]
[313427622,1707336650596,-500.0,0.00029863,3]
[313427623,1707336650605,-500.0,0.00029863,3]
[313427624,1707336650614,-500.0,0.00029863,3]
[313427625,1707336650624,-2605.72,0.00029863,3]
[313427626,1707336650634,-500.0,0.00029863,3]
[313427627,1707336650643,-4252.06,0.00029863,3]
[313427628,1707336650653,-784.66,0.00029863,3]
[313427629,1707336650662,-500.0,0.00029863,3]
[313427630,1707336650672,-6209.74,0.00029863,3]
[313427631,1707336650681,-2000.0,0.0002987,2]
[313427632,1707336650692,-2000.0,0.0002988,2]
[313427633,1707336650701,-2000.0,0.0002989,2]
[313427634,1707336650711,-5000.0,0.00029897,5]
[313427635,1707336650721,-2274.5064198,0.000299,2]
[313427636,1707336650734,-2000.0,0.000299,2]
[313427637,1707336650743,-5000.0,0.000299,5]
[313427638,1707336650753,-1586.00570889,0.000299,2]
[313427639,1707336650763,-2000.0,0.0002991,2]
[313427640,1707336650772,-2000.0,0.0002992,2]
[313427641,1707336650782,-2000.0,0.0002993,2]
[313427642,1707336650792,-151.0,0.00029931,2]
[313427643,1707336650801,-2000.0,0.0002994,2]
[313427644,1707336650811,-2000.0,0.0002995,2]
[313427645,1707336650821,-2000.0,0.0002996,2]
[313427646,1707336650831,-3564.955345,0.0002997,2]
[313427647,1707336650841,-5730.81448081,0.0003,2]
[313427648,1707336650850,-349.80791941,0.0003,4]
[313427649,1707336650860,-1238.34840962,0.0003,14]
[313427650,1707336650870,-2986.5693328,0.0003,4]
[313427651,1707336650880,-503.98514352,0.0003,14]
[313427652,1707336650891,-985.73043499,0.0003,4]
[313427653,1707336650901,-154.93802479,0.0003,4]
[313427654,1707336650910,-167.32955615,0.0003,2]
[313427655,1707336650920,-6213.79816755,0.0003,2]
[313427656,1707336650929,-2199.84293304,0.0003,2]
[313427657,1707336650939,-20986.46336052,0.0003,10]
[313427658,1707336650962,-295.04399365,0.0003,10]
[313427659,1707336651430,-0.001679,0.00018135,2]
[313427660,1707336659167,155.02790502,0.00016322,3]
[313427661,1707336679189,155.02790502,0.00016322,3]
[313427662,1707336699164,155.02790502,0.00016322,3]
[313427663,1707336717180,155.02790502,0.00016322,3]
[313427664,1707336737172,155.03255684,0.00016317,3]
[313427667,1707336757175,155.0356582,0.00016317,3]
[313427668,1707336775181,155.02635448,0.00016317,3]
[313427669,1707336797187,155.02635448,0.00016313,3]
[313427670,1707336809395,897.78834,0.00017131,2]
[313427671,1707336817185,155.02635448,0.00016313,3]
[313427672,1707336833839,527.601253,0.00017128,2]
[313427673,1707336841192,155.02480397,0.00016309,3]
[313427674,1707336859316,155.02325349,0.00016308,3]
[313427675,1707336865421,786.0289051,0.00017124,2]
[313427676,1707336875197,155.02170304,0.00016308,3]
[313427677,1707336891205,155.01705188,0.00016308,3]
[313427678,1707336911195,155.01705188,0.00016302,3]
[313427679,1707336929195,155.01705188,0.00016302,3]
[313427680,1707336951209,155.01860223,0.00016301,3]
[313427681,1707336969218,155.01860223,0.00016297,3]
[313427682,1707336985211,155.02635448,0.00016297,3]
[313427683,1707337007246,155.02635448,0.00016297,3]
[313427684,1707337013673,1715.8749224,0.00017109,2]
[313427685,1707337031241,155.04961588,0.00016291,3]
[313427686,1707337053294,155.05737123,0.00016289,3]
[313427687,1707337073220,155.06047358,0.00016286,3]
[313427688,1707337076840,14809.22755245,0.00016289,2]
[313427689,1707337092368,21413.8099258,0.00017099,2]
[313427690,1707337093214,155.05892239,0.00016285,3]
[313427691,1707337113214,155.05892239,0.00016285,3]
[313427692,1707337133237,155.05892239,0.00016285,3]
[313427693,1707337149235,155.05892239,0.00016279,3]
[313427694,1707337167254,155.05892239,0.00016277,3]
[313427695,1707337187244,155.05892239,0.00016277,3]
[313427696,1707337203512,155.05892239,0.00016271,3]
[313427697,1707337219314,155.05892239,0.00016269,3]
[313427698,1707337237235,155.05737123,0.00016269,3]
[313427699,1707337255244,155.05737123,0.00016269,3]
[313427700,1707337275247,155.05737123,0.00016264,3]
[313427701,1707337289251,155.05737123,0.00016261,3]
[313427702,1707337309267,155.05737123,0.00016261,3]
[313427703,1707337327449,155.05737123,0.00016258,3]
[313427704,1707337351248,155.05737123,0.00016255,3]
[313427705,1707337371257,155.05737123,0.00016255,3]
[313427706,1707337393260,155.05737123,0.0001625,3]
[313427707,1707337410545,155.05737123,0.00016247,3]
[313427708,1707337427269,155.05892239,0.00016247,3]
[313427709,1707337447270,155.05892239,0.00016247,3]
[313427710,1707337451593,263.800626,0.00017051,2]
[313427711,1707337463264,155.05892239,0.00016241,3]
[313427712,1707337483270,155.05892239,0.00016238,3]
[313427713,1707337483597,2648.9697429,0.00017048,2]
[313427714,1707337501297,155.05892239,0.00016237,3]
[313427715,1707337519298,155.05892239,0.00016232,3]
[313427716,1707337537296,155.05892239,0.00016232,3]
[313427723,1707337553305,155.06047358,0.00016232,3]
[313427726,1707337573296,155.06047358,0.00016232,3]
[313427727,1707337595347,155.06047358,0.00016227,3]
[313427735,1707337613316,155.06047358,0.00016225,3]
[313427843,1707337635358,155.06047358,0.00016222,3]
[313427912,1707337653346,155.06047358,0.00016221,3]
[313427914,1707337669361,155.06047358,0.0001622,3]
[313427915,1707337691338,155.05892239,0.00016214,3]
[313427916,1707337713380,155.05737123,0.00016213,3]
[313427917,1707337733353,155.05737123,0.00016212,3]
[313427921,1707337749352,155.0558201,0.00016212,3]
[313427923,1707337769381,155.0558201,0.00016206,3]
[313427925,1707337793351,155.0480649,0.00016205,3]
[313427926,1707337800273,167.15951964,0.00018,2]
[313427927,1707337800850,3755.69529023,0.00018,2]
[313427928,1707337800955,1297.15038027,0.00018,2]
[313427929,1707337802005,1513.15613917,0.00018,2]
[313427930,1707337802304,155.0480649,0.00018,2]
[313427931,1707337802593,155.0480649,0.00018,2]
[313427932,1707337805458,155.0480649,0.00018,2]
[313427933,1707337806100,1946.99903392,0.00018,2]
[313427935,1707337806863,352.18460138,0.00018,2]
[313427936,1707337806943,5223.83358614,0.00018,2]
[313427937,1707337807517,330.4947575,0.00018,2]
[313427938,1707337811358,155.0480649,0.00016205,3]
[313427939,1707337814013,609.6684753,0.00018,2]
[313427940,1707337814527,1687.90304115,0.00018,2]
[313427941,1707337814743,20929.45735728,0.00018,2]
[313427942,1707337815330,179.18619241,0.00018,2]
[313427943,1707337815968,155.0480649,0.00018,2]
[313427944,1707337816795,5852.91245033,0.00018,2]
[313427945,1707337820556,590.02632581,0.00018,2]
[313427946,1707337822270,557.07360906,0.00018,2]
[313427949,1707337822773,167.49012731,0.00018,2]
[313427950,1707337828632,2822.01569009,0.00018,2]
[313427951,1707337829095,1859.71951506,0.00018,2]
[313427952,1707337830212,13445.3459617,0.00018,2]
[313427957,1707337833388,155.0480649,0.00016205,3]
[313428036,1707337834883,-12103.0246383,0.00018,2]
[313428039,1707337834896,-2176.41038533,0.00018,2]
[313428043,1707337834908,-3291.31583508,0.00018,2]
[313428047,1707337834922,-4479.68727357,0.00018,2]
[313428191,1707337839843,-1745.51182689,0.00017999,2]
[313428193,1707337839853,-48427.10869617,0.00018,2]
[313428195,1707337839863,-640.35816557,0.00018,2]
[313428197,1707337839872,-214.05113646,0.00018,2]
[313428200,1707337839882,-2044.6804249,0.00018,2]
[313428202,1707337839892,-199.73989634,0.00018001,2]
[313428204,1707337839901,-155.0480649,0.00018001,2]
[313428205,1707337839910,-155.0480649,0.00018001,2]
[313428207,1707337839920,-4179.85662615,0.00018001,2]
[313428208,1707337839929,-37061.66416696,0.00018001,2]
[313428209,1707337839938,-294.51312657,0.00018002,2]